[Event "Titled Tuesday Blitz June 27 Late 2023"]
[White "Goncalves, Davi Sulzbacher"]
[Black "Kevlishvili, Robby"]
[WhiteFideId "2154510"]
[BlackFideId "1040634"]
[WhiteElo "2496"]
[BlackElo "2959"]
[Result "0-1"]
[Round "1"]
[TimeControl "180+2"]
[Date "2023.06.27"]
[WhiteClock "0:00:00"]
[BlackClock "0:00:38"]
[Board "24"]

1. Nf3 {[%clk 0:02:57]}  Nf6 {[%clk 0:03:00]} 2. d4 {[%clk 0:02:57]}  g6 {[%clk 0:03:01]} 3. c4 {[%clk 0:02:57]}  Bg7 {[%clk 0:03:01]} 4. Nc3 {[%clk 0:02:58]}  O-O {[%clk 0:03:02]} 5. e4 {[%clk 0:02:58]}  d6 {[%clk 0:03:02]} 6. Be2 {[%clk 0:02:58]}  Bg4 {[%clk 0:03:03]} 7. O-O {[%clk 0:02:58]}  Na6 {[%clk 0:03:03]} 8. Be3 {[%clk 0:02:57]}  c5 {[%clk 0:02:56]} 9. d5 {[%clk 0:02:55]}  e6 {[%clk 0:02:55]} 10. h3 {[%clk 0:02:50]}  Bxf3 {[%clk 0:02:55]} 11. Bxf3 {[%clk 0:02:51]}  exd5 {[%clk 0:02:55]} 12. exd5 {[%clk 0:02:51]}  Re8 {[%clk 0:02:55]} 13. Re1 {[%clk 0:02:50]}  Nc7 {[%clk 0:02:52]} 14. Qd2 {[%clk 0:02:45]}  Qd7 {[%clk 0:02:51]} 15. a4 {[%clk 0:02:39]}  Na6 {[%clk 0:02:50]} 16. Bh6 {[%clk 0:02:38]}  Nb4 {[%clk 0:02:50]} 17. Bxg7 {[%clk 0:02:34]}  Kxg7 {[%clk 0:02:51]} 18. Rxe8 {[%clk 0:02:20]}  Rxe8 {[%clk 0:02:50]} 19. Re1 {[%clk 0:02:20]}  a6 {[%clk 0:02:51]} 20. Re3 {[%clk 0:02:09]}  Rxe3 {[%clk 0:02:48]} 21. Qxe3 {[%clk 0:02:09]}  Nc2 {[%clk 0:02:48]} 22. Qf4 {[%clk 0:02:00]}  Nd4 {[%clk 0:02:48]} 23. g4 {[%clk 0:01:51]}  Qe7 {[%clk 0:02:43]} 24. Kg2 {[%clk 0:01:32]}  h6 {[%clk 0:02:33]} 25. h4 {[%clk 0:01:25]}  Nd7 {[%clk 0:02:28]} 26. g5 {[%clk 0:00:46]}  hxg5 {[%clk 0:02:18]} 27. hxg5 {[%clk 0:00:47]}  Ne5 {[%clk 0:01:34]} 28. Bd1 {[%clk 0:00:45]}  Nxc4 {[%clk 0:01:32]} 29. Ne4 {[%clk 0:00:44]}  Qe5 {[%clk 0:01:08]} 30. Qf6+ {[%clk 0:00:25]}  Qxf6 {[%clk 0:01:07]} 31. gxf6+ {[%clk 0:00:26]}  Kf8 {[%clk 0:01:07]} 32. b3 {[%clk 0:00:27]}  Nb2 {[%clk 0:01:06]} 33. Bg4 {[%clk 0:00:26]}  Nxb3 {[%clk 0:01:04]} 34. Nxd6 {[%clk 0:00:24]}  c4 {[%clk 0:00:58]} 35. Nxb7 {[%clk 0:00:21]}  c3 {[%clk 0:00:56]} 36. d6 {[%clk 0:00:21]}  Nd4 {[%clk 0:00:56]} 37. Na5 {[%clk 0:00:14]}  Nd3 {[%clk 0:00:49]} 38. d7 {[%clk 0:00:13]}  Nf4+ {[%clk 0:00:40]} 39. Kh2 {[%clk 0:00:13]}  Nfe6 {[%clk 0:00:37]} 40. Bxe6 {[%clk 0:00:12]}  Nxe6 {[%clk 0:00:37]} 41. Nb3 {[%clk 0:00:11]}  g5 {[%clk 0:00:36]} 42. Kg2 {[%clk 0:00:12]}  Kg8 {[%clk 0:00:36]} 43. Kf1 {[%clk 0:00:12]}  Kh7 {[%clk 0:00:37]} 44. Ke2 {[%clk 0:00:12]}  Kg6 {[%clk 0:00:37]} 45. Nd4 {[%clk 0:00:12]}  Nxd4+ {[%clk 0:00:37]} 46. Kd3 {[%clk 0:00:12]}  Ne6 {[%clk 0:00:37]} 47. Kxc3 {[%clk 0:00:12]}  Kxf6 {[%clk 0:00:38]} 48. Kd3 {[%clk 0:00:00]}  Ke7 {[%clk 0:00:38]} 0-1


[Site "https://www.chess.com"]

[Event "Titled Tuesday Blitz June 27 Late 2023"]
[White "Makarian, Rudik"]
[Black "Vovk, Orest"]
[WhiteFideId "44105681"]
[BlackFideId "14113490"]
[WhiteElo "2955"]
[BlackElo "2495"]
[Result "1-0"]
[Round "1"]
[TimeControl "180+2"]
[Date "2023.06.27"]
[WhiteClock "0:02:15"]
[BlackClock "0:00:00"]
[Board "25"]

1. Nf3 {[%clk 0:03:00]}  h6 {[%clk 0:02:57]} 2. h4 {[%clk 0:02:57]}  Nf6 {[%clk 0:02:56]} 3. d4 {[%clk 0:02:57]}  d6 {[%clk 0:02:48]} 4. g3 {[%clk 0:02:56]}  Bg4 {[%clk 0:02:46]} 5. Bg2 {[%clk 0:02:56]}  Nc6 {[%clk 0:02:46]} 6. d5 {[%clk 0:02:53]}  Ne5 {[%clk 0:02:34]} 7. Nxe5 {[%clk 0:02:49]}  dxe5 {[%clk 0:02:35]} 8. c3 {[%clk 0:02:50]}  g6 {[%clk 0:02:20]} 9. c4 {[%clk 0:02:50]}  Bg7 {[%clk 0:02:20]} 10. Nc3 {[%clk 0:02:51]}  O-O {[%clk 0:02:19]} 11. O-O {[%clk 0:02:52]}  Qd7 {[%clk 0:02:11]} 12. Qb3 {[%clk 0:02:51]}  Rab8 {[%clk 0:02:04]} 13. Be3 {[%clk 0:02:51]}  b6 {[%clk 0:02:02]} 14. a4 {[%clk 0:02:50]}  Bh3 {[%clk 0:01:53]} 15. Rfd1 {[%clk 0:02:47]}  Bxg2 {[%clk 0:01:53]} 16. Kxg2 {[%clk 0:02:47]}  Ng4 {[%clk 0:01:48]} 17. Nb5 {[%clk 0:02:47]}  a6 {[%clk 0:01:41]} 18. Na7 {[%clk 0:02:48]}  f5 {[%clk 0:01:30]} 19. f3 {[%clk 0:02:43]}  Nxe3+ {[%clk 0:01:25]} 20. Qxe3 {[%clk 0:02:44]}  e4 {[%clk 0:01:09]} 21. Nc6 {[%clk 0:02:41]}  Rbe8 {[%clk 0:01:08]} 22. fxe4 {[%clk 0:02:39]}  f4 {[%clk 0:01:07]} 23. gxf4 {[%clk 0:02:38]}  Qg4+ {[%clk 0:01:07]} 24. Qg3 {[%clk 0:02:37]}  Rxf4 {[%clk 0:01:07]} 25. Qxg4 {[%clk 0:02:30]}  Rxg4+ {[%clk 0:01:08]} 26. Kf3 {[%clk 0:02:30]}  Rxh4 {[%clk 0:01:08]} 27. Rh1 {[%clk 0:02:26]}  Rxh1 {[%clk 0:00:56]} 28. Rxh1 {[%clk 0:02:27]}  h5 {[%clk 0:00:40]} 29. e5 {[%clk 0:02:24]}  Bf8 {[%clk 0:00:26]} 30. Ke4 {[%clk 0:02:22]}  Kg7 {[%clk 0:00:24]} 31. e6 {[%clk 0:02:20]}  Kh6 {[%clk 0:00:20]} 32. Rf1 {[%clk 0:02:17]}  Bg7 {[%clk 0:00:19]} 33. b4 {[%clk 0:02:14]}  Bf6 {[%clk 0:00:17]} 34. c5 {[%clk 0:02:14]}  bxc5 {[%clk 0:00:14]} 35. bxc5 {[%clk 0:02:15]}  g5 {[%clk 0:00:15]} 36. Rxf6+ {[%clk 0:02:12]}  exf6 {[%clk 0:00:14]} 37. Kf5 {[%clk 0:02:13]}  h4 {[%clk 0:00:09]} 38. d6 {[%clk 0:02:13]}  cxd6 {[%clk 0:00:09]} 39. cxd6 {[%clk 0:02:14]}  h3 {[%clk 0:00:08]} 40. d7 {[%clk 0:02:15]}  Rh8 {[%clk 0:00:07]} 41. e7 {[%clk 0:02:14]}  h2 {[%clk 0:00:00]} 42. e8=Q {[%clk 0:02:15]} 1-0


[Site "https://www.chess.com"]

[Event "Titled Tuesday Blitz June 27 Late 2023"]
[White "Osmak, Yuliia"]
[Black "Indjic, Aleksandar"]
[WhiteFideId "14101602"]
[BlackFideId "911925"]
[WhiteElo "2494"]
[BlackElo "2950"]
[Result "0-1"]
[Round "1"]
[TimeControl "180+2"]
[Date "2023.06.27"]
[WhiteClock "0:01:20"]
[BlackClock "0:02:12"]
[Board "26"]

1. d4 {[%clk 0:02:59]}  Nf6 {[%clk 0:02:57]} 2. c4 {[%clk 0:02:59]}  e6 {[%clk 0:02:58]} 3. Nc3 {[%clk 0:02:58]}  c5 {[%clk 0:02:59]} 4. d5 {[%clk 0:02:58]}  exd5 {[%clk 0:02:59]} 5. cxd5 {[%clk 0:02:59]}  d6 {[%clk 0:03:00]} 6. e4 {[%clk 0:03:00]}  g6 {[%clk 0:03:00]} 7. f4 {[%clk 0:03:00]}  Bg7 {[%clk 0:03:01]} 8. Bb5+ {[%clk 0:02:58]}  Nfd7 {[%clk 0:03:00]} 9. Nf3 {[%clk 0:02:58]}  a6 {[%clk 0:02:59]} 10. Bd3 {[%clk 0:02:58]}  b5 {[%clk 0:03:00]} 11. O-O {[%clk 0:02:57]}  O-O {[%clk 0:03:00]} 12. Kh1 {[%clk 0:02:56]}  Re8 {[%clk 0:02:58]} 13. f5 {[%clk 0:02:56]}  Ne5 {[%clk 0:02:55]} 14. Bg5 {[%clk 0:02:55]}  Bf6 {[%clk 0:02:52]} 15. h4 {[%clk 0:02:51]}  Nbd7 {[%clk 0:02:48]} 16. Qd2 {[%clk 0:02:42]}  Bxg5 {[%clk 0:02:45]} 17. Nxg5 {[%clk 0:02:38]}  c4 {[%clk 0:02:39]} 18. Bc2 {[%clk 0:02:35]}  Nc5 {[%clk 0:02:38]} 19. f6 {[%clk 0:02:22]}  Ra7 {[%clk 0:02:28]} 20. Nh3 {[%clk 0:01:54]}  Ng4 {[%clk 0:02:19]} 21. Qf4 {[%clk 0:01:38]}  Re5 {[%clk 0:02:16]} 22. Bd1 {[%clk 0:01:34]}  Nd3 {[%clk 0:02:14]} 23. Qe3 {[%clk 0:01:20]}  Nxe3 {[%clk 0:02:12]} 0-1


[Site "https://www.chess.com"]

[Event "Titled Tuesday Blitz June 27 Late 2023"]
[White "Makhnev, Denis"]
[Black "Uzcategui Rodriguez, Alejandro"]
[WhiteFideId "13707647"]
[BlackFideId "3903400"]
[WhiteElo "2933"]
[BlackElo "2488"]
[Result "0-1"]
[Round "1"]
[TimeControl "180+2"]
[Date "2023.06.27"]
[WhiteClock "0:00:00"]
[BlackClock "0:00:23"]
[Board "31"]

1. d4 {[%clk 0:03:00]}  Nf6 {[%clk 0:02:57]} 2. c4 {[%clk 0:03:01]}  d6 {[%clk 0:02:57]} 3. Nf3 {[%clk 0:03:01]}  Nbd7 {[%clk 0:02:57]} 4. g3 {[%clk 0:03:01]}  e5 {[%clk 0:02:58]} 5. Bg2 {[%clk 0:03:01]}  Be7 {[%clk 0:02:58]} 6. Nc3 {[%clk 0:03:02]}  O-O {[%clk 0:02:58]} 7. O-O {[%clk 0:03:01]}  c6 {[%clk 0:02:59]} 8. e4 {[%clk 0:03:02]}  a6 {[%clk 0:02:57]} 9. a4 {[%clk 0:02:58]}  a5 {[%clk 0:02:56]} 10. h3 {[%clk 0:02:58]}  Re8 {[%clk 0:02:52]} 11. Be3 {[%clk 0:02:57]}  Bf8 {[%clk 0:02:52]} 12. Qc2 {[%clk 0:02:58]}  Qc7 {[%clk 0:02:48]} 13. Rfe1 {[%clk 0:02:57]}  exd4 {[%clk 0:02:48]} 14. Nxd4 {[%clk 0:02:57]}  Nc5 {[%clk 0:02:47]} 15. Rad1 {[%clk 0:02:57]}  Na6 {[%clk 0:02:42]} 16. f4 {[%clk 0:02:52]}  Nb4 {[%clk 0:02:40]} 17. Qf2 {[%clk 0:02:52]}  Nd7 {[%clk 0:02:39]} 18. Nb3 {[%clk 0:02:41]}  b6 {[%clk 0:02:33]} 19. g4 {[%clk 0:02:32]}  Ba6 {[%clk 0:02:29]} 20. Bf1 {[%clk 0:02:27]}  Rad8 {[%clk 0:02:25]} 21. g5 {[%clk 0:02:27]}  g6 {[%clk 0:02:23]} 22. h4 {[%clk 0:02:25]}  Bg7 {[%clk 0:02:19]} 23. Bd4 {[%clk 0:02:16]}  Bxd4 {[%clk 0:02:11]} 24. Nxd4 {[%clk 0:02:16]}  Nc5 {[%clk 0:02:10]} 25. Re3 {[%clk 0:02:08]}  Bb7 {[%clk 0:02:06]} 26. Bg2 {[%clk 0:02:01]}  Qc8 {[%clk 0:01:38]} 27. Qg3 {[%clk 0:01:59]}  d5 {[%clk 0:01:35]} 28. cxd5 {[%clk 0:01:54]}  cxd5 {[%clk 0:01:35]} 29. e5 {[%clk 0:01:54]}  Ne4 {[%clk 0:01:34]} 30. Qe1 {[%clk 0:01:45]}  Qg4 {[%clk 0:01:29]} 31. Rf3 {[%clk 0:01:26]}  Nc6 {[%clk 0:01:23]} 32. Kh2 {[%clk 0:01:19]}  Nxd4 {[%clk 0:00:58]} 33. Rxd4 {[%clk 0:01:20]}  Nc5 {[%clk 0:00:55]} 34. f5 {[%clk 0:00:35]}  Qxd4 {[%clk 0:00:51]} 35. e6 {[%clk 0:00:33]}  Ne4 {[%clk 0:00:43]} 36. exf7+ {[%clk 0:00:32]}  Kxf7 {[%clk 0:00:44]} 37. fxg6+ {[%clk 0:00:32]}  Kxg6 {[%clk 0:00:45]} 38. h5+ {[%clk 0:00:31]}  Kg7 {[%clk 0:00:44]} 39. h6+ {[%clk 0:00:28]}  Kg8 {[%clk 0:00:45]} 40. Nxe4 {[%clk 0:00:23]}  dxe4 {[%clk 0:00:43]} 41. Rf6 {[%clk 0:00:22]}  Qe5+ {[%clk 0:00:41]} 42. Kh1 {[%clk 0:00:23]}  Qxg5 {[%clk 0:00:40]} 43. Rxb6 {[%clk 0:00:23]}  Rd2 {[%clk 0:00:37]} 44. Bh3 {[%clk 0:00:16]}  Bd5 {[%clk 0:00:27]} 45. Rb5 {[%clk 0:00:11]}  e3+ {[%clk 0:00:26]} 46. Rxd5 {[%clk 0:00:11]}  Qxd5+ {[%clk 0:00:27]} 47. Kg1 {[%clk 0:00:12]}  Qg5+ {[%clk 0:00:27]} 48. Kh1 {[%clk 0:00:12]}  Red8 {[%clk 0:00:23]} 49. Be6+ {[%clk 0:00:00]}  Kh8 {[%clk 0:00:23]} 0-1


[Site "https://www.chess.com"]

[Event "Titled Tuesday Blitz June 27 Late 2023"]
[White "Rengifo Blancas, Renzo Jhonathan"]
[Black "Xiong, Jeffery"]
[WhiteFideId "3807185"]
[BlackFideId "2047640"]
[WhiteElo "2488"]
[BlackElo "2933"]
[Result "1/2-1/2"]
[Round "1"]
[TimeControl "180+2"]
[Date "2023.06.27"]
[WhiteClock "0:00:37"]
[BlackClock "0:01:23"]
[Board "32"]

1. e4 {[%clk 0:03:00]}  c6 {[%clk 0:02:57]} 2. d4 {[%clk 0:03:00]}  d5 {[%clk 0:02:58]} 3. Nc3 {[%clk 0:03:01]}  dxe4 {[%clk 0:02:58]} 4. Nxe4 {[%clk 0:03:02]}  Nf6 {[%clk 0:02:59]} 5. Nxf6+ {[%clk 0:03:02]}  exf6 {[%clk 0:03:00]} 6. c3 {[%clk 0:03:02]}  Bd6 {[%clk 0:03:01]} 7. Bd3 {[%clk 0:03:03]}  O-O {[%clk 0:03:01]} 8. Qc2 {[%clk 0:03:03]}  Re8+ {[%clk 0:03:02]} 9. Be3 {[%clk 0:03:03]}  h5 {[%clk 0:02:59]} 10. Ne2 {[%clk 0:03:03]}  Nd7 {[%clk 0:02:59]} 11. h3 {[%clk 0:03:03]}  Nb6 {[%clk 0:02:50]} 12. O-O-O {[%clk 0:02:59]}  Nd5 {[%clk 0:02:50]} 13. Bd2 {[%clk 0:02:49]}  b5 {[%clk 0:02:50]} 14. Rde1 {[%clk 0:02:42]}  a5 {[%clk 0:02:28]} 15. Kb1 {[%clk 0:02:41]}  a4 {[%clk 0:02:28]} 16. Nc1 {[%clk 0:02:36]}  Be6 {[%clk 0:02:18]} 17. Bf5 {[%clk 0:02:31]}  Bxf5 {[%clk 0:02:18]} 18. Qxf5 {[%clk 0:02:30]}  g6 {[%clk 0:02:19]} 19. Qf3 {[%clk 0:02:28]}  Qd7 {[%clk 0:02:17]} 20. Nd3 {[%clk 0:02:26]}  Rxe1+ {[%clk 0:02:17]} 21. Rxe1 {[%clk 0:02:25]}  Re8 {[%clk 0:02:18]} 22. Re2 {[%clk 0:01:58]}  Re6 {[%clk 0:01:57]} 23. a3 {[%clk 0:01:32]}  Qe7 {[%clk 0:01:56]} 24. Rxe6 {[%clk 0:01:27]}  Qxe6 {[%clk 0:01:57]} 25. Kc2 {[%clk 0:01:24]}  Kf8 {[%clk 0:01:49]} 26. Kd1 {[%clk 0:01:11]}  Ke7 {[%clk 0:01:44]} 27. Qe2 {[%clk 0:01:08]}  g5 {[%clk 0:01:37]} 28. Nc1 {[%clk 0:01:06]}  Nb6 {[%clk 0:01:35]} 29. Qxh5 {[%clk 0:00:52]}  Nc4 {[%clk 0:01:33]} 30. Nd3 {[%clk 0:00:51]}  Qf5 {[%clk 0:01:30]} 31. Qe2+ {[%clk 0:00:48]}  Kd7 {[%clk 0:01:23]} 32. Qg4 {[%clk 0:00:37]} 1/2-1/2


[Site "https://www.chess.com"]

[Event "Titled Tuesday Blitz June 27 Late 2023"]
[White "Koutsin, Sergey"]
[Black "Durarbayli, Vasif"]
[WhiteFideId "14101483"]
[BlackFideId "13402935"]
[WhiteElo "2483"]
[BlackElo "2930"]
[Result "1-0"]
[Round "1"]
[TimeControl "180+2"]
[Date "2023.06.27"]
[WhiteClock "0:00:06"]
[BlackClock "0:00:00"]
[Board "34"]

1. d4 {[%clk 0:03:00]}  Nf6 {[%clk 0:02:59]} 2. c4 {[%clk 0:03:00]}  e6 {[%clk 0:02:59]} 3. Nf3 {[%clk 0:03:00]}  b6 {[%clk 0:03:00]} 4. a3 {[%clk 0:03:00]}  Bb7 {[%clk 0:02:59]} 5. Nc3 {[%clk 0:02:59]}  d5 {[%clk 0:02:59]} 6. Bg5 {[%clk 0:02:59]}  Be7 {[%clk 0:02:54]} 7. e3 {[%clk 0:02:58]}  Nbd7 {[%clk 0:02:53]} 8. Rc1 {[%clk 0:02:58]}  O-O {[%clk 0:02:50]} 9. cxd5 {[%clk 0:02:58]}  exd5 {[%clk 0:02:49]} 10. Be2 {[%clk 0:02:58]}  c5 {[%clk 0:02:43]} 11. O-O {[%clk 0:02:58]}  Re8 {[%clk 0:02:42]} 12. Bh4 {[%clk 0:02:48]}  Ne4 {[%clk 0:02:24]} 13. Bxe7 {[%clk 0:02:44]}  Qxe7 {[%clk 0:02:25]} 14. Bb5 {[%clk 0:02:15]}  Red8 {[%clk 0:02:15]} 15. Qe2 {[%clk 0:01:47]}  Nf8 {[%clk 0:01:20]} 16. Rfd1 {[%clk 0:01:40]}  a6 {[%clk 0:01:08]} 17. Ba4 {[%clk 0:01:38]}  Ne6 {[%clk 0:01:03]} 18. Bb3 {[%clk 0:01:16]}  Nxc3 {[%clk 0:00:54]} 19. Rxc3 {[%clk 0:01:15]}  c4 {[%clk 0:00:54]} 20. Ba2 {[%clk 0:01:05]}  b5 {[%clk 0:00:54]} 21. Bb1 {[%clk 0:00:55]}  a5 {[%clk 0:00:52]} 22. Ne5 {[%clk 0:00:41]}  b4 {[%clk 0:00:51]} 23. axb4 {[%clk 0:00:41]}  axb4 {[%clk 0:00:52]} 24. Rcc1 {[%clk 0:00:41]}  f6 {[%clk 0:00:37]} 25. Nf3 {[%clk 0:00:21]}  Rac8 {[%clk 0:00:25]} 26. Qe1 {[%clk 0:00:20]}  Nf8 {[%clk 0:00:20]} 27. h3 {[%clk 0:00:18]}  Re8 {[%clk 0:00:14]} 28. Bf5 {[%clk 0:00:17]}  Rcd8 {[%clk 0:00:14]} 29. Bb1 {[%clk 0:00:15]}  Qd6 {[%clk 0:00:14]} 30. Nh2 {[%clk 0:00:15]}  Ne6 {[%clk 0:00:14]} 31. Qe2 {[%clk 0:00:13]}  Ng5 {[%clk 0:00:14]} 32. Qg4 {[%clk 0:00:13]}  Bc8 {[%clk 0:00:14]} 33. Qe2 {[%clk 0:00:12]}  Ne4 {[%clk 0:00:14]} 34. Qe1 {[%clk 0:00:11]}  Bf5 {[%clk 0:00:13]} 35. f3 {[%clk 0:00:10]}  Ng3 {[%clk 0:00:14]} 36. Nf1 {[%clk 0:00:09]}  Nxf1 {[%clk 0:00:13]} 37. Kxf1 {[%clk 0:00:07]}  Bxb1 {[%clk 0:00:13]} 38. Rxb1 {[%clk 0:00:08]}  Re6 {[%clk 0:00:11]} 39. Kf2 {[%clk 0:00:08]}  Rde8 {[%clk 0:00:12]} 40. Rd2 {[%clk 0:00:08]}  Rxe3 {[%clk 0:00:06]} 41. Qxe3 {[%clk 0:00:07]}  Rxe3 {[%clk 0:00:07]} 42. Kxe3 {[%clk 0:00:08]}  b3 {[%clk 0:00:08]} 43. Rc1 {[%clk 0:00:07]}  Qg3 {[%clk 0:00:07]} 44. Rc3 {[%clk 0:00:05]}  Qg5+ {[%clk 0:00:06]} 45. f4 {[%clk 0:00:02]}  Qg3+ {[%clk 0:00:06]} 46. Ke2 {[%clk 0:00:02]}  Qxg2+ {[%clk 0:00:07]} 47. Ke3 {[%clk 0:00:03]}  Qg3+ {[%clk 0:00:07]} 48. Ke2 {[%clk 0:00:04]}  Qg2+ {[%clk 0:00:08]} 49. Ke3 {[%clk 0:00:04]}  Qxh3+ {[%clk 0:00:08]} 50. Ke2 {[%clk 0:00:05]}  Qg2+ {[%clk 0:00:09]} 51. Ke3 {[%clk 0:00:05]}  h5 {[%clk 0:00:09]} 52. Rxg2 {[%clk 0:00:05]}  Kf7 {[%clk 0:00:09]} 53. Kf3 {[%clk 0:00:05]}  g6 {[%clk 0:00:00]} 54. Re3 {[%clk 0:00:06]} 1-0


[Site "https://www.chess.com"]

[Event "Titled Tuesday Blitz June 27 Late 2023"]
[White "Antipov, Mikhail Al."]
[Black "Urbina Perez, Juan Antonio"]
[WhiteFideId "4107012"]
[BlackFideId "2217368"]
[WhiteElo "2924"]
[BlackElo "2483"]
[Result "1-0"]
[Round "1"]
[TimeControl "180+2"]
[Date "2023.06.27"]
[WhiteClock "0:00:10"]
[BlackClock "0:00:11"]
[Board "35"]

1. e4 {[%clk 0:03:00]}  e5 {[%clk 0:02:56]} 2. Nf3 {[%clk 0:02:56]}  Nc6 {[%clk 0:02:56]} 3. Nc3 {[%clk 0:02:56]}  Nf6 {[%clk 0:02:57]} 4. Bb5 {[%clk 0:02:56]}  Bb4 {[%clk 0:02:56]} 5. Nd5 {[%clk 0:02:55]}  Bd6 {[%clk 0:02:52]} 6. O-O {[%clk 0:02:50]}  O-O {[%clk 0:02:51]} 7. d4 {[%clk 0:02:48]}  Nxd5 {[%clk 0:02:45]} 8. exd5 {[%clk 0:02:41]}  Nxd4 {[%clk 0:02:45]} 9. Nxd4 {[%clk 0:02:42]}  exd4 {[%clk 0:02:45]} 10. Qxd4 {[%clk 0:02:42]}  c5 {[%clk 0:02:26]} 11. Qc3 {[%clk 0:02:29]}  a6 {[%clk 0:02:24]} 12. Bd3 {[%clk 0:02:27]}  b5 {[%clk 0:02:22]} 13. b3 {[%clk 0:02:27]}  Qh4 {[%clk 0:02:06]} 14. g3 {[%clk 0:02:19]}  Qg4 {[%clk 0:01:46]} 15. Bb2 {[%clk 0:02:09]}  b4 {[%clk 0:01:45]} 16. Qd2 {[%clk 0:02:05]}  Re8 {[%clk 0:01:35]} 17. h3 {[%clk 0:01:30]}  Qh5 {[%clk 0:01:08]} 18. Kg2 {[%clk 0:01:05]}  Bb7 {[%clk 0:01:07]} 19. f3 {[%clk 0:00:55]}  Qxd5 {[%clk 0:00:48]} 20. Rad1 {[%clk 0:00:53]}  Be5 {[%clk 0:00:40]} 21. Qg5 {[%clk 0:00:43]}  f6 {[%clk 0:00:35]} 22. Bxh7+ {[%clk 0:00:41]}  Kf8 {[%clk 0:00:31]} 23. Rxd5 {[%clk 0:00:39]}  fxg5 {[%clk 0:00:29]} 24. Rxe5 {[%clk 0:00:36]}  Rxe5 {[%clk 0:00:28]} 25. Bxe5 {[%clk 0:00:37]}  Re8 {[%clk 0:00:28]} 26. Re1 {[%clk 0:00:36]}  Kf7 {[%clk 0:00:25]} 27. Kf2 {[%clk 0:00:30]}  g6 {[%clk 0:00:23]} 28. h4 {[%clk 0:00:24]}  gxh4 {[%clk 0:00:22]} 29. gxh4 {[%clk 0:00:25]}  Bd5 {[%clk 0:00:17]} 30. f4 {[%clk 0:00:20]}  Be6 {[%clk 0:00:18]} 31. h5 {[%clk 0:00:19]}  gxh5 {[%clk 0:00:16]} 32. Rg1 {[%clk 0:00:20]}  Bg4 {[%clk 0:00:16]} 33. Bd3 {[%clk 0:00:16]}  Ke6 {[%clk 0:00:13]} 34. Bxa6 {[%clk 0:00:13]}  d6 {[%clk 0:00:13]} 35. Bb2 {[%clk 0:00:10]}  d5 {[%clk 0:00:13]} 36. Re1+ {[%clk 0:00:09]}  Kd7 {[%clk 0:00:14]} 37. Bb5+ {[%clk 0:00:09]}  Kc7 {[%clk 0:00:11]} 38. Rxe8 {[%clk 0:00:10]} 1-0


[Site "https://www.chess.com"]

[Event "Titled Tuesday Blitz June 27 Late 2023"]
[White "Miszler, Levente"]
[Black "Muradli, Mahammad"]
[WhiteFideId "763276"]
[BlackFideId "13409301"]
[WhiteElo "2482"]
[BlackElo "2918"]
[Result "0-1"]
[Round "1"]
[TimeControl "180+2"]
[Date "2023.06.27"]
[WhiteClock "0:01:58"]
[BlackClock "0:02:01"]
[Board "36"]

1. Nf3 {[%clk 0:02:56]}  c5 {[%clk 0:02:51]} 2. e4 {[%clk 0:02:54]}  b6 {[%clk 0:02:47]} 3. d4 {[%clk 0:02:51]}  cxd4 {[%clk 0:02:48]} 4. Nxd4 {[%clk 0:02:52]}  Bb7 {[%clk 0:02:48]} 5. Nc3 {[%clk 0:02:49]}  e6 {[%clk 0:02:47]} 6. a3 {[%clk 0:02:46]}  a6 {[%clk 0:02:26]} 7. Be3 {[%clk 0:02:46]}  d6 {[%clk 0:02:25]} 8. Be2 {[%clk 0:02:46]}  Nd7 {[%clk 0:02:25]} 9. O-O {[%clk 0:02:45]}  Ngf6 {[%clk 0:02:25]} 10. f3 {[%clk 0:02:43]}  Be7 {[%clk 0:02:24]} 11. Qd2 {[%clk 0:02:43]}  O-O {[%clk 0:02:21]} 12. Rad1 {[%clk 0:02:43]}  Rc8 {[%clk 0:02:21]} 13. Kh1 {[%clk 0:02:41]}  Qc7 {[%clk 0:02:18]} 14. Bf2 {[%clk 0:02:41]}  Rfd8 {[%clk 0:02:15]} 15. Bg3 {[%clk 0:02:40]}  Ne5 {[%clk 0:02:14]} 16. h3 {[%clk 0:02:30]}  b5 {[%clk 0:02:13]} 17. f4 {[%clk 0:02:27]}  Nc4 {[%clk 0:02:11]} 18. Bxc4 {[%clk 0:02:27]}  Qxc4 {[%clk 0:02:12]} 19. Rfe1 {[%clk 0:02:24]}  b4 {[%clk 0:02:10]} 20. axb4 {[%clk 0:02:23]}  Qxb4 {[%clk 0:02:08]} 21. f5 {[%clk 0:02:10]}  e5 {[%clk 0:02:05]} 22. Nd5 {[%clk 0:02:04]}  Nxd5 {[%clk 0:02:03]} 23. exd5 {[%clk 0:02:05]}  Qxd2 {[%clk 0:02:01]} 24. Rxd2 {[%clk 0:01:58]}  Bg5 {[%clk 0:02:01]} 0-1


[Site "https://www.chess.com"]

[Event "Titled Tuesday Blitz June 27 Late 2023"]
[White "Suleymanli, Aydin"]
[Black "Baches Garcia, Guillermo"]
[WhiteFideId "13413937"]
[BlackFideId "2209764"]
[WhiteElo "2910"]
[BlackElo "2482"]
[Result "1-0"]
[Round "1"]
[TimeControl "180+2"]
[Date "2023.06.27"]
[WhiteClock "0:00:03"]
[BlackClock "0:00:00"]
[Board "37"]

1. e4 {[%clk 0:03:00]}  d5 {[%clk 0:02:57]} 2. exd5 {[%clk 0:02:11]}  Qxd5 {[%clk 0:02:57]} 3. Nc3 {[%clk 0:02:10]}  Qa5 {[%clk 0:02:53]} 4. Nf3 {[%clk 0:02:09]}  Nf6 {[%clk 0:02:46]} 5. h3 {[%clk 0:02:06]}  c6 {[%clk 0:02:42]} 6. Bc4 {[%clk 0:02:05]}  Bf5 {[%clk 0:02:39]} 7. O-O {[%clk 0:02:03]}  e6 {[%clk 0:02:39]} 8. Nh4 {[%clk 0:01:59]}  Bg6 {[%clk 0:02:37]} 9. Nxg6 {[%clk 0:01:51]}  hxg6 {[%clk 0:02:35]} 10. d3 {[%clk 0:01:50]}  Nbd7 {[%clk 0:02:23]} 11. Re1 {[%clk 0:01:47]}  Bd6 {[%clk 0:02:21]} 12. Bd2 {[%clk 0:01:46]}  Qc7 {[%clk 0:02:14]} 13. d4 {[%clk 0:01:29]}  O-O-O {[%clk 0:01:57]} 14. a4 {[%clk 0:01:16]}  Nb6 {[%clk 0:01:53]} 15. Bd3 {[%clk 0:01:06]}  Bh2+ {[%clk 0:01:49]} 16. Kh1 {[%clk 0:01:05]}  Bf4 {[%clk 0:01:45]} 17. a5 {[%clk 0:00:54]}  Nbd5 {[%clk 0:01:39]} 18. Kg1 {[%clk 0:00:45]}  Bh2+ {[%clk 0:01:36]} 19. Kh1 {[%clk 0:00:45]}  Bf4 {[%clk 0:01:36]} 20. Kg1 {[%clk 0:00:46]}  Bh2+ {[%clk 0:01:36]} 21. Kf1 {[%clk 0:00:41]}  Bf4 {[%clk 0:01:32]} 22. Ne2 {[%clk 0:00:27]}  g5 {[%clk 0:01:04]} 23. Ng1 {[%clk 0:00:12]}  g4 {[%clk 0:00:54]} 24. hxg4 {[%clk 0:00:04]}  Rh1 {[%clk 0:00:52]} 25. g3 {[%clk 0:00:04]}  Bxg3 {[%clk 0:00:48]} 26. Qf3 {[%clk 0:00:02]}  Rxg1+ {[%clk 0:00:31]} 27. Kxg1 {[%clk 0:00:03]}  Bh2+ {[%clk 0:00:30]} 28. Kf1 {[%clk 0:00:03]}  Rh8 {[%clk 0:00:27]} 29. g5 {[%clk 0:00:02]}  Nh5 {[%clk 0:00:21]} 30. g6 {[%clk 0:00:03]}  fxg6 {[%clk 0:00:18]} 31. Rxe6 {[%clk 0:00:02]}  Nhf4 {[%clk 0:00:14]} 32. Rae1 {[%clk 0:00:02]}  Nxd3 {[%clk 0:00:10]} 33. cxd3 {[%clk 0:00:02]}  Bf4 {[%clk 0:00:00]} 34. Re8+ {[%clk 0:00:03]} 1-0


[Site "https://www.chess.com"]